fUST/lending_fUST_20250201
["ID","MTS","AMOUNT","RATE_DAILY","PERIOD"]
[351176481,1738396235675,-500.0,0.00016986,2]
[351176483,1738396235685,-500.0,0.00016986,2]
[351176485,1738396235694,-633.89,0.00016986,2]
[351176487,1738396235704,-383.08,0.00016986,2]
[351176489,1738396235714,-797.44,0.00016986,2]
[351176491,1738396235723,-500.0,0.00016986,2]
[351176493,1738396235733,-500.0,0.00016986,2]
[351176495,1738396235743,-500.0,0.00016986,2]
[351176497,1738396235752,-1409.02,0.00016986,2]
[351176499,1738396235762,-389.75260168,0.00016986,2]
[351176501,1738396235772,-2313.67,0.00016986,2]
[351176503,1738396235781,-583.87,0.00016986,2]
[351176505,1738396235791,-500.0,0.00016986,2]
[351176507,1738396235800,-6482.38,0.00016986,2]
[351176509,1738396235809,-731.14,0.00016986,2]
[351176511,1738396235818,-244.0188689,0.00016986,7]
[351176513,1738396235828,-500.0,0.00016986,2]
[351176515,1738396235838,-500.0,0.00016986,2]
[351176517,1738396235848,-500.0,0.00016986,2]
[351176519,1738396235858,-500.0,0.00016986,2]
[351176521,1738396235868,-500.0,0.00016986,2]
[351176523,1738396235879,-369.41,0.00016986,2]
[351176525,1738396235889,-500.0,0.00016986,2]
[351176527,1738396235898,-500.0,0.00016986,2]
[351176529,1738396235907,-500.0,0.00016986,2]
[351176531,1738396235920,-500.0,0.00016986,2]
[351176533,1738396235931,-500.0,0.00016986,2]
[351176535,1738396235942,-679.41,0.00016986,2]
[351176537,1738396235952,-1000.0,0.00017,17]
[351176539,1738396235962,-1000.0,0.00017,2]
[351176541,1738396235972,-968.39059517,0.00017107,2]
[351176543,1738396235982,-155.030831,0.00017123,2]
[351176545,1738396235993,-151.0,0.00017123,2]
[351176546,1738396236003,-500.0,0.00017123,2]
[351176547,1738396236013,-500.0,0.00017123,2]
[351176548,1738396236029,-151.0,0.00017123,2]
[351176549,1738396236039,-500.0,0.00017123,2]
[351176550,1738396236048,-151.0,0.00017123,2]
[351176551,1738396236058,-500.0,0.00017123,2]
[351176552,1738396236067,-463.11,0.00017123,2]
[351176553,1738396236077,-500.0,0.00017123,2]
[351176554,1738396236085,-500.0,0.00017123,2]
[351176555,1738396236094,-500.0,0.00017123,2]
[351176556,1738396236103,-151.0,0.00017123,2]
[351176557,1738396236114,-500.0,0.00017123,2]
[351176558,1738396236124,-1670.17,0.00017123,2]
[351176559,1738396236133,-500.0,0.00017123,2]
[351176561,1738396236142,-500.0,0.00017123,2]
[351176563,1738396236152,-500.0,0.00017123,2]
[351176565,1738396236161,-633.89,0.00017123,2]
[351176567,1738396236170,-797.44,0.00017123,2]
[351176568,1738396236180,-500.0,0.00017123,2]
[351176570,1738396236190,-1409.02,0.00017123,2]
[351176573,1738396236200,-2313.67,0.00017123,2]
[351176575,1738396236209,-583.87,0.00017123,2]
[351176577,1738396236218,-500.0,0.00017123,2]
[351176579,1738396236227,-6482.38,0.00017123,2]
[351176581,1738396236236,-731.14,0.00017123,2]
[351176583,1738396236245,-599.2,0.00017123,2]
[351176584,1738396236256,-500.0,0.00017123,2]
[351176585,1738396236265,-500.0,0.00017123,2]
[351176586,1738396236274,-500.0,0.00017123,2]
[351176587,1738396236284,-500.0,0.00017123,2]
[351176588,1738396236294,-500.0,0.00017123,2]
[351176589,1738396236304,-500.0,0.00017123,2]
[351176590,1738396236314,-500.0,0.00017123,2]
[351176591,1738396236327,-608.1672377,0.00017123,2]
[351176592,1738396236337,-679.41,0.00017123,2]
[351176593,1738396236346,-550.6124898,0.00017188,2]
[351176594,1738396236355,-151.0,0.0001726,2]
[351176595,1738396236366,-553.47852764,0.0001726,2]
[351176596,1738396236375,-163.02,0.0001726,2]
[351176597,1738396236385,-500.0,0.0001726,2]
[351176598,1738396236394,-151.0,0.0001726,2]
[351176599,1738396236403,-500.0,0.0001726,2]
[351176600,1738396236412,-500.0,0.0001726,2]
[351176601,1738396236422,-500.0,0.0001726,2]
[351176602,1738396236431,-591.6,0.0001726,2]
[351176603,1738396236440,-1670.17,0.0001726,2]
[351176604,1738396236450,-500.0,0.0001726,2]
[351176605,1738396236460,-500.0,0.0001726,2]
[351176606,1738396236469,-500.0,0.0001726,2]
[351176607,1738396236479,-633.89,0.0001726,2]
[351176608,1738396236489,-797.44,0.0001726,2]
[351176609,1738396236498,-500.0,0.0001726,2]
[351176610,1738396236508,-1409.02,0.0001726,2]
[351176611,1738396236518,-2313.67,0.0001726,2]
[351176612,1738396236528,-583.87,0.0001726,2]
[351176613,1738396236546,-500.0,0.0001726,2]
[351176614,1738396236556,-303.59501948,0.0001726,2]
[351176649,1738396238213,-500.0,0.00016986,2]
[351176652,1738396238246,-500.0,0.00017123,2]
[351176655,1738396238258,-6178.78498052,0.0001726,2]
[351176657,1738396238268,-731.14,0.0001726,2]
[351176659,1738396238279,-319.4,0.0001726,2]
[351176661,1738396238289,-492.48,0.0001726,2]
[351176663,1738396238300,-500.0,0.0001726,2]
[351176665,1738396238310,-500.0,0.0001726,2]
[351176668,1738396238324,-500.0,0.0001726,2]
[351176670,1738396238334,-500.0,0.0001726,2]
[351176672,1738396238344,-500.0,0.0001726,2]
[351176674,1738396238354,-679.41,0.0001726,2]
[351176676,1738396238366,-500.0,0.0001726,2]
[351176678,1738396238375,-41.87662307,0.00017314,2]
[351176681,1738396238390,-735.50365646,0.00017314,2]
[351177145,1738396243402,-22.8099173,0.00017314,2]
[351177146,1738396243414,-168.20039834,0.00017314,2]
[351177147,1738396243424,-151.0,0.00017397,2]
[351177148,1738396243434,-338.79961146,0.00017397,2]
[351177172,1738396246366,-1183.04,0.00016438,2]
[351177173,1738396246377,-500.0,0.00016438,2]
[351177174,1738396246387,-1183.04,0.00016575,2]
[351177175,1738396246396,-653.51498496,0.00016712,2]
[351177176,1738396378126,6470.49,0.00020453,120]
[351177194,1738397011389,221.404919,0.00013973,2]
[351177198,1738397147147,-243.971,0.00015609,2]
[351177199,1738397147169,-1767.2824088,0.0001578,2]
[351177205,1738397248089,-346.23949622,0.00015665,2]
[351177208,1738397351110,-239.09776337,0.00015508,2]
[351177815,1738397438443,-238.227795,0.0001538,2]
[351177817,1738397438453,-5.03983663,0.00015508,2]
[351177819,1738397438463,-928.15954578,0.00015665,2]
[351177821,1738397438472,-7214.4112889,0.0001578,2]
[351177823,1738397438482,-11.40463801,0.00016068,2]
[351177825,1738397438493,-488.59536199,0.00016068,2]
[351177827,1738397438502,-300.0,0.00016437,2]
[351177829,1738397438511,-501.65081813,0.00016438,2]
[351177831,1738397438521,-501.2904104,0.00016438,2]
[351177833,1738397438530,-500.0,0.00016438,2]
[351177835,1738397438539,-500.0,0.00016438,2]
[351177837,1738397438549,-500.0,0.00016438,2]
[351177839,1738397438558,-501.40220244,0.00016438,2]
[351177841,1738397438567,-500.82314656,0.00016438,2]
[351177843,1738397438576,-501.63113183,0.00016438,2]
[351177845,1738397438586,-501.46143754,0.00016438,2]
[351177847,1738397438595,-500.0,0.00016438,2]
[351177850,1738397438606,-500.0,0.00016438,2]
[351177852,1738397438616,-500.0,0.00016438,2]
[351177854,1738397438625,-500.0,0.00016438,2]
[351177856,1738397438635,-762.02,0.00016438,2]
[351177858,1738397438645,-698.31,0.00016438,2]
[351177860,1738397438654,-500.0,0.00016438,2]
[351177862,1738397438663,-258.52629496,0.00016438,2]
[351177864,1738397438672,-500.0,0.00016438,2]
[351177867,1738397438692,-500.0,0.00016438,2]
[351177869,1738397438703,-500.0,0.00016438,2]
[351177871,1738397438713,-500.0,0.00016438,2]
[351177873,1738397438723,-500.0,0.00016438,2]
[351177875,1738397438732,-500.0,0.00016438,2]
[351177877,1738397438746,-1632.28,0.00016438,2]
[351177879,1738397438756,-2724.64,0.00016438,2]
[351177881,1738397438766,-7300.8,0.00016438,2]
[351177883,1738397438775,-500.0,0.00016438,2]
[351177885,1738397438786,-500.0,0.00016438,2]
[351177887,1738397438796,-500.0,0.00016438,2]
[351177889,1738397438806,-343.6104596,0.00016438,2]
[351177892,1738397438817,-500.0,0.00016438,2]
[351177894,1738397438827,-773.1,0.00016438,2]
[351177896,1738397438837,-819.45,0.00016438,2]
[351177898,1738397438847,-500.0,0.00016438,2]
[351177900,1738397438857,-500.0,0.00016438,2]
[351177902,1738397438866,-750.06,0.00016438,2]
[351177904,1738397438876,-500.0,0.00016438,2]
[351177906,1738397438886,-500.0,0.00016438,2]
[351177908,1738397438905,-562.41,0.00016438,2]
[351177910,1738397438916,-500.0,0.00016438,2]
[351177912,1738397438926,-500.0,0.00016438,2]
[351177914,1738397438937,-500.0,0.00016438,2]
[351177916,1738397438946,-1637.51,0.00016438,2]
[351177919,1738397438957,-500.0,0.00016438,2]
[351177921,1738397438966,-441.07454584,0.00016438,2]
[351177923,1738397438975,-500.0,0.00016438,2]
[351177925,1738397438986,-500.0,0.00016438,2]
[351177927,1738397438995,-500.0,0.00016575,2]
[351177929,1738397439007,-500.0,0.00016575,2]
[351177931,1738397439017,-500.0,0.00016575,2]
[351177933,1738397439026,-762.02,0.00016575,2]
[351177935,1738397439036,-698.31,0.00016575,2]
[351177938,1738397439046,-500.0,0.00016575,2]
[351177940,1738397439057,-500.0,0.00016575,2]
[351177942,1738397439066,-500.0,0.00016575,2]
[351177944,1738397439076,-563.91845873,0.00016575,2]
[351177946,1738397439089,-500.0,0.00016575,2]
[351177948,1738397439098,-1632.28,0.00016575,2]
[351177950,1738397439108,-2724.64,0.00016575,2]
[351177952,1738397439118,-7300.8,0.00016575,2]
[351177954,1738397439127,-484.24838081,0.00016575,2]
[351177956,1738397439137,-500.0,0.00016575,2]
[351177958,1738397439147,-500.0,0.00016575,2]
[351177960,1738397439157,-500.0,0.00016575,2]
[351177962,1738397439167,-773.1,0.00016575,2]
[351177964,1738397439176,-819.45,0.00016575,2]
[351177966,1738397439187,-500.0,0.00016575,2]
[351177968,1738397439196,-500.0,0.00016575,2]
[351177970,1738397439206,-750.06,0.00016575,2]
[351177972,1738397439216,-500.0,0.00016575,2]
[351177974,1738397439226,-500.0,0.00016575,2]
[351177976,1738397439236,-562.41,0.00016575,2]
[351177979,1738397439246,-500.0,0.00016575,2]
[351177981,1738397439256,-500.0,0.00016575,2]
[351177983,1738397439265,-1637.51,0.00016575,2]
[351177985,1738397439275,-500.0,0.00016575,2]
[351177987,1738397439284,-500.0,0.00016575,2]
[351177989,1738397439293,-500.0,0.00016575,2]
[351177991,1738397439303,-500.0,0.00016575,2]
[351177993,1738397439313,-179.04774178,0.00016612,2]
[351177995,1738397439323,-187.44601946,0.00016711,2]
[351177997,1738397439333,-500.0,0.00016712,2]
[351177999,1738397439342,-500.0,0.00016712,2]
[351178001,1738397439352,-500.0,0.00016712,2]
[351178003,1738397439361,-762.02,0.00016712,2]
[351178005,1738397439371,-698.31,0.00016712,2]
[351178007,1738397439380,-500.0,0.00016712,2]
[351178009,1738397439389,-500.0,0.00016712,2]
[351178011,1738397439399,-500.0,0.00016712,2]
[351178013,1738397439409,-500.0,0.00016712,2]
[351178015,1738397439418,-1632.28,0.00016712,2]
[351178017,1738397439428,-2724.64,0.00016712,2]
[351178019,1738397439437,-7300.8,0.00016712,2]
[351178021,1738397439447,-500.0,0.00016712,2]
[351178023,1738397439456,-500.0,0.00016712,2]
[351178025,1738397439466,-500.0,0.00016712,2]
[351178027,1738397439475,-773.1,0.00016712,2]
[351178029,1738397439484,-819.45,0.00016712,2]
[351178031,1738397439494,-500.0,0.00016712,2]
[351178033,1738397439503,-500.0,0.00016712,2]
[351178035,1738397439512,-750.06,0.00016712,2]
[351178037,1738397439522,-500.0,0.00016712,2]
[351178039,1738397439531,-474.62818455,0.00016712,2]
[351178041,1738397439540,-562.41,0.00016712,2]
[351178043,1738397439550,-587.13331473,0.00016712,2]
[351178045,1738397439560,-500.0,0.00016712,2]
[351178047,1738397439569,-1637.51,0.00016712,2]
[351178049,1738397439579,-500.0,0.00016712,2]
[351178051,1738397439589,-500.0,0.00016712,2]
[351178053,1738397439598,-500.0,0.00016712,2]
[351178055,1738397439608,-500.0,0.00016712,2]
[351178057,1738397439619,-379.0600102,0.00016849,2]
[351178059,1738397439629,-500.0,0.00016849,2]
[351178061,1738397439640,-500.0,0.00016849,2]
[351178063,1738397439650,-762.02,0.00016849,2]
[351178065,1738397439660,-698.31,0.00016849,2]
[351178067,1738397439669,-500.0,0.00016849,2]
[351178069,1738397439678,-500.0,0.00016849,2]
[351178072,1738397439689,-500.0,0.00016849,2]
[351178074,1738397439699,-500.0,0.00016849,2]
[351178076,1738397439709,-1632.28,0.00016849,2]
[351178078,1738397439719,-2724.64,0.00016849,2]
[351178080,1738397439729,-7300.8,0.00016849,2]
[351178082,1738397439742,-500.0,0.00016849,2]
[351178084,1738397439752,-500.0,0.00016849,2]
[351178086,1738397439761,-500.0,0.00016849,2]
[351178087,1738397439771,-773.1,0.00016849,2]
[351178088,1738397439782,-819.45,0.00016849,2]
[351178089,1738397439792,-500.0,0.00016849,2]
[351178090,1738397439801,-500.0,0.00016849,2]
[351178091,1738397439810,-750.06,0.00016849,2]
[351178092,1738397439821,-500.0,0.00016849,2]
[351178093,1738397439830,-562.41,0.00016849,2]
[351178094,1738397439840,-500.0,0.00016849,2]
[351178095,1738397439849,-1637.51,0.00016849,2]
[351178096,1738397439859,-500.0,0.00016849,2]
[351178097,1738397439869,-500.0,0.00016849,2]
[351178098,1738397439878,-500.0,0.00016849,2]
[351178099,1738397439888,-705.45662286,0.00016857,2]
[351178101,1738397439897,-500.0,0.00016986,2]
[351178103,1738397439907,-500.0,0.00016986,2]
[351178105,1738397439917,-762.02,0.00016986,2]
[351178108,1738397439926,-698.31,0.00016986,2]
[351178110,1738397439937,-500.0,0.00016986,2]
[351178112,1738397439947,-500.0,0.00016986,2]
[351178114,1738397439956,-500.0,0.00016986,2]
[351178116,1738397439966,-500.0,0.00016986,2]
[351178118,1738397439975,-1632.28,0.00016986,2]
[351178120,1738397439985,-2724.64,0.00016986,2]
[351178122,1738397439994,-7300.8,0.00016986,2]
[351178124,1738397440005,-500.0,0.00016986,2]
[351178126,1738397440014,-500.0,0.00016986,2]
[351178128,1738397440023,-500.0,0.00016986,2]
[351178130,1738397440033,-773.1,0.00016986,2]
[351178132,1738397440043,-819.45,0.00016986,2]
[351178134,1738397440052,-500.0,0.00016986,2]
[351178136,1738397440061,-500.0,0.00016986,2]
[351178138,1738397440071,-750.06,0.00016986,2]
[351178140,1738397440080,-500.0,0.00016986,2]
[351178142,1738397440090,-562.41,0.00016986,2]
[351178144,1738397440101,-642.71,0.00016986,2]
[351178146,1738397440110,-500.0,0.00016986,2]
[351178148,1738397440120,-1637.51,0.00016986,2]
[351178150,1738397440130,-500.0,0.00016986,2]
[351178152,1738397440140,-500.0,0.00016986,2]
[351178154,1738397440150,-501.11811723,0.00017011,2]
[351178157,1738397440160,-500.0,0.00017058,2]
[351178159,1738397440169,-586.08227768,0.00017122,2]
[351178161,1738397440179,-500.0,0.00017123,2]
[351178162,1738397440189,-500.0,0.00017123,2]
[351178164,1738397440198,-762.02,0.00017123,2]
[351178167,1738397440211,-698.31,0.00017123,2]
[351178169,1738397440220,-500.0,0.00017123,2]
[351178171,1738397440230,-151.0,0.00017123,2]
[351178173,1738397440240,-500.0,0.00017123,2]
[351178175,1738397440249,-500.0,0.00017123,2]
[351178177,1738397440259,-500.0,0.00017123,2]
[351178179,1738397440269,-1632.28,0.00017123,2]
[351178181,1738397440278,-2724.64,0.00017123,2]
[351178183,1738397440288,-7300.8,0.00017123,2]
[351178185,1738397440298,-500.0,0.00017123,2]
[351178187,1738397440308,-500.0,0.00017123,2]
[351178189,1738397440317,-500.0,0.00017123,2]
[351178191,1738397440327,-773.1,0.00017123,2]
[351178193,1738397440337,-819.45,0.00017123,2]
[351178196,1738397440347,-500.0,0.00017123,2]
[351178198,1738397440358,-500.0,0.00017123,2]
[351178200,1738397440368,-750.06,0.00017123,2]
[351178202,1738397440378,-500.0,0.00017123,2]
[351178204,1738397440387,-562.41,0.00017123,2]
[351178206,1738397440396,-1637.51,0.00017123,2]
[351178208,1738397440406,-500.0,0.00017123,2]
[351178210,1738397440415,-500.0,0.00017123,2]
[351178212,1738397440425,-500.0,0.00017123,2]
[351178214,1738397440436,-500.0,0.0001726,2]
[351178216,1738397440445,-500.0,0.0001726,2]
[351178218,1738397440454,-762.02,0.0001726,2]
[351178220,1738397440463,-698.31,0.0001726,2]
[351178221,1738397440472,-151.0,0.0001726,2]
[351178222,1738397440482,-500.0,0.0001726,2]
[351178223,1738397440491,-500.0,0.0001726,2]
[351178224,1738397440501,-1632.28,0.0001726,2]
[351178225,1738397440510,-2724.64,0.0001726,2]
[351178226,1738397440520,-7300.8,0.0001726,2]
[351178227,1738397440529,-500.0,0.0001726,2]
[351178228,1738397440538,-500.0,0.0001726,2]
[351178229,1738397440547,-773.1,0.0001726,2]
[351178230,1738397440557,-819.45,0.0001726,2]
[351178231,1738397440566,-500.0,0.0001726,2]
[351178232,1738397440576,-750.06,0.0001726,2]
[351178233,1738397440586,-173.42590078,0.0001726,2]
[351178234,1738397440595,-562.41,0.0001726,2]
[351178235,1738397440604,-500.0,0.0001726,2]
[351178237,1738397440724,-1637.51,0.0001726,2]
[351178239,1738397440753,-500.0,0.0001726,2]
[351178241,1738397440763,-500.0,0.00017397,2]
[351178243,1738397440772,-300.62,0.00017397,2]
[351178246,1738397440783,-762.02,0.00017397,2]
[351178248,1738397440792,-698.31,0.00017397,2]
[351178249,1738397440802,-500.0,0.00017397,2]
[351178252,1738397440813,-500.0,0.00017397,2]
[351178254,1738397440823,-1632.28,0.00017397,2]
[351178256,1738397440834,-2724.64,0.00017397,2]
[351178258,1738397440843,-7300.8,0.00017397,2]
[351178260,1738397440852,-500.0,0.00017397,2]
[351178262,1738397440862,-500.0,0.00017397,2]
[351178264,1738397440871,-773.1,0.00017397,2]
[351178266,1738397440881,-819.45,0.00017397,2]
[351178268,1738397440890,-750.06,0.00017397,2]
[351178270,1738397440899,-500.0,0.00017397,2]
[351178272,1738397440910,-562.41,0.00017397,2]
[351178274,1738397440919,-591.12,0.00017397,2]
[351178276,1738397440928,-1637.51,0.00017397,2]
[351178278,1738397440939,-500.0,0.00017397,2]
[351178280,1738397440949,-500.0,0.00017438,2]
[351178282,1738397440959,-623.0,0.000175,2]
[351178284,1738397440968,-500.0,0.00017534,2]
[351178286,1738397440977,-762.02,0.00017534,2]
[351178288,1738397440987,-698.31,0.00017534,2]
[351178290,1738397440996,-151.0,0.00017534,2]
[351178292,1738397441005,-500.0,0.00017534,2]
[351178294,1738397441014,-500.0,0.00017534,2]
[351178296,1738397441024,-1632.28,0.00017534,2]
[351178298,1738397441033,-2724.64,0.00017534,2]
[351178300,1738397441042,-7300.8,0.00017534,2]
[351178302,1738397441051,-500.0,0.00017534,2]
[351178304,1738397441060,-500.0,0.00017534,2]
[351178306,1738397441070,-773.1,0.00017534,2]
[351178308,1738397441080,-819.45,0.00017534,2]
[351178310,1738397441089,-750.06,0.00017534,2]
[351178312,1738397441099,-500.0,0.00017534,2]
[351178314,1738397441109,-562.41,0.00017534,2]
[351178316,1738397441118,-1637.51,0.00017534,2]
[351178318,1738397441128,-500.0,0.00017534,2]
[351178320,1738397441137,-396.0,0.00017575,2]
[351178322,1738397441147,-247.0,0.000176,2]
[351178324,1738397441156,-1000.0,0.00017606,2]
[351178326,1738397441167,-183.126,0.00017654,2]
[351178328,1738397441176,-150.416,0.00017654,2]
[351178330,1738397441186,-150.0,0.00017654,2]
[351178332,1738397441195,-537.0,0.00017654,2]
[351178334,1738397441204,-2052.0,0.00017654,2]
[351178336,1738397441214,-2303.0,0.00017654,2]
[351178338,1738397441224,-4845.43279459,0.0001767,5]
[351178340,1738397441234,-52717.8279362,0.00017671,5]
[351178342,1738397441243,-500.0,0.00017671,2]
[351178344,1738397441253,-762.02,0.00017671,2]
[351178346,1738397441263,-698.31,0.00017671,2]
[351178348,1738397441272,-151.0,0.00017671,2]
[351178350,1738397441281,-500.0,0.00017671,2]
[351178352,1738397441291,-500.0,0.00017671,2]
[351178354,1738397441301,-1632.28,0.00017671,2]
[351178357,1738397441311,-2724.64,0.00017671,2]
[351178358,1738397441321,-7300.8,0.00017671,2]
[351178361,1738397441331,-500.0,0.00017671,2]
[351178363,1738397441341,-500.0,0.00017671,2]
[351178365,1738397441350,-773.1,0.00017671,2]
[351178367,1738397441359,-819.45,0.00017671,2]
[351178369,1738397441369,-750.06,0.00017671,2]
[351178371,1738397441379,-500.0,0.00017671,2]
[351178373,1738397441388,-562.41,0.00017671,2]
[351178375,1738397441398,-1637.51,0.00017671,2]
[351178377,1738397441407,-500.0,0.00017671,2]
[351178379,1738397441416,-477.02283114,0.000177,2]
[351178381,1738397441426,-500.0,0.00017808,2]
[351178383,1738397441436,-150.06,0.00017808,2]
[351178385,1738397441445,-150.06,0.00017808,2]
[351178387,1738397441455,-762.02,0.00017808,2]
[351178389,1738397441464,-698.31,0.00017808,2]
[351178391,1738397441474,-381.21,0.00017808,2]
[351178393,1738397441483,-500.0,0.00017808,2]
[351178395,1738397441492,-1632.28,0.00017808,2]
[351178397,1738397441502,-2724.64,0.00017808,2]
[351178399,1738397441511,-7300.8,0.00017808,2]
[351178401,1738397441520,-571.55,0.00017808,2]
[351178403,1738397441530,-500.0,0.00017808,2]
[351178404,1738397441539,-773.1,0.00017808,2]
[351178407,1738397441549,-819.45,0.00017808,2]
[351178409,1738397441559,-750.06,0.00017808,2]
[351178411,1738397441568,-500.0,0.00017808,2]
[351178413,1738397441577,-152.2112292,0.00017808,2]
[351178415,1738397441586,-562.41,0.00017808,2]
[351178417,1738397441595,-1637.51,0.00017808,2]
[351178419,1738397441605,-871.55153574,0.000179,2]
[351178421,1738397441614,-9280.13,0.000179,2]
[351178423,1738397441623,-8378.47,0.000179,2]
[351178425,1738397441632,-500.0,0.00017945,2]
[351178426,1738397441641,-762.02,0.00017945,2]
[351178429,1738397441651,-698.31,0.00017945,2]
[351178431,1738397441661,-500.0,0.00017945,2]
[351178432,1738397441680,-1632.28,0.00017945,2]
[351178434,1738397441691,-2724.64,0.00017945,2]
[351178436,1738397441700,-7300.8,0.00017945,2]
[351178438,1738397441709,-500.0,0.00017945,2]
[351178440,1738397441719,-773.1,0.00017945,2]
[351178442,1738397441728,-819.45,0.00017945,2]
[351178444,1738397441737,-750.06,0.00017945,2]
[351178446,1738397441751,-500.0,0.00017945,2]
[351178448,1738397441760,-562.41,0.00017945,2]
[351178450,1738397441769,-1637.51,0.00017945,2]
[351178452,1738397441779,-420.0,0.00017963,2]
[351178454,1738397441789,-158.6,0.0001798,2]
[351178456,1738397441798,-4929.06000479,0.00018,2]
[351178458,1738397441808,-1000.0,0.00018,18]
[351178460,1738397441817,-3531.1201506,0.00018,3]
[351178462,1738397441827,-212.409042,0.00018,3]
[351178464,1738397441837,-501.40656709,0.00018046,2]
[351178466,1738397441846,-871.55153565,0.00018072,2]
[351178468,1738397441855,-150.06,0.00018082,2]
[351178470,1738397441864,-150.06,0.00018082,2]
[351178472,1738397441873,-500.0,0.00018082,2]
[351178473,1738397441882,-762.02,0.00018082,2]
[351178475,1738397441891,-698.31,0.00018082,2]
[351178476,1738397441900,-500.0,0.00018082,2]
[351178477,1738397441911,-1632.28,0.00018082,2]
[351178478,1738397441921,-2724.64,0.00018082,2]
[351178479,1738397441930,-7300.8,0.00018082,2]
[351178480,1738397441940,-500.0,0.00018082,2]
[351178481,1738397441949,-773.1,0.00018082,2]
[351178482,1738397441960,-819.45,0.00018082,2]
[351178483,1738397441970,-750.06,0.00018082,2]
[351178484,1738397441979,-198.85090653,0.00018082,2]
[351178485,1738397441989,-562.41,0.00018082,2]
[351178486,1738397441998,-1637.51,0.00018082,2]
[351178487,1738397442009,-151.0,0.000181,2]
[351178488,1738397442018,-500.0,0.00018151,2]
[351178489,1738397442027,-500.0,0.00018219,2]
[351178490,1738397442036,-762.02,0.00018219,2]
[351178491,1738397442046,-698.31,0.00018219,2]
[351178492,1738397442055,-500.0,0.00018219,2]
[351178493,1738397442065,-1632.28,0.00018219,2]
[351178494,1738397442075,-2724.64,0.00018219,2]
[351178495,1738397442085,-7300.8,0.00018219,2]
[351178496,1738397442094,-500.0,0.00018219,2]
[351178497,1738397442104,-773.1,0.00018219,2]
[351178498,1738397442114,-819.45,0.00018219,2]
[351178499,1738397442123,-750.06,0.00018219,2]
[351178500,1738397442132,-562.41,0.00018219,2]
[351178501,1738397442141,-1637.51,0.00018219,2]
[351178502,1738397442150,-871.55153565,0.00018245,2]
[351178503,1738397442159,-153.0,0.00018251,2]
[351178504,1738397442168,-153.0,0.00018251,2]
[351178505,1738397442176,-153.0,0.00018251,2]
[351178506,1738397442186,-153.0,0.00018251,2]
[351178507,1738397442195,-153.0,0.00018251,2]
[351178508,1738397442203,-153.0,0.00018251,2]
[351178509,1738397442212,-153.0,0.00018251,2]
[351178510,1738397442221,-153.0,0.00018251,2]
[351178511,1738397442229,-153.0,0.00018251,2]
[351178512,1738397442239,-153.0,0.00018251,2]
[351178513,1738397442248,-153.0,0.00018251,2]
[351178514,1738397442257,-153.0,0.00018251,2]
[351178515,1738397442267,-153.0,0.00018251,2]
[351178516,1738397442276,-153.0,0.00018251,2]